[Event "BAN-chT Golden Jubilee 2021-22"]
[Site "Dhaka"]
[Date "2022.03.14"]
[Round "5.3"]
[White "Himanshu, Sharma"]
[Black "Hossain, Enamul"]
[Result "0-1"]
[ECO "B24"]
[WhiteElo "2391"]
[BlackElo "2410"]
[Annotator "ChessBase"]
[PlyCount "98"]
[EventDate "2022.03.10"]
[EventType "team-tourn"]
[EventCountry "BAN"]
[SourceTitle "playchess.com"]
[Source "ChessBase"]
[SourceQuality "1"]
[TimeControl "40/5400+30:1800+30"]

1. e4 {[%emt 0:02:11]} c5 {[%emt 0:00:16]} 2. Nc3 {[%emt 0:00:11]} e6 {[%emt 0:00:24]} 3. Nge2 {[%emt 0:01:32]} Nc6 {[%emt 0:00:27]} 4. g3 {[%emt 0:03:32]} d5 {[%emt 0:00:57]} 5. exd5 {[%emt 0:00:14]} exd5 {[%emt 0:00:04]} 6. Bg2 {[%emt 0:00:20]} Nf6 {[%emt 0:03:21]} 7. d4 {[%emt 0:03:32]} cxd4 {[%emt 0:00:24]} 8. Nxd4 {[%emt 0:00:21]} Bg4 {[%emt 0:00:27]} 9. f3 {[%emt 0:15:48]} Bd7 {[%emt 0:01:27]} 10. Be3 {[%emt 0:04:26]} Be7 {[%emt 0:02:05]} 11. O-O {[%emt 0:02:12]} O-O {[%emt 0:01:29]} 12. Kh1 {[%emt 0:03:12]} Re8 {[%emt 0:01:17]} 13. Re1 {[%emt 0:00:42]} Bb4 {[%emt 0:07:06]} 14. Nxc6 {[%emt 0:06:21]} bxc6 {[%emt 0:00:55]} 15. Qd3 {[%emt 0:00:11]} h6 {[%emt 0:09:10]} 16. a3 {[%emt 0:01:18]} Bf8 {[%emt 0:07:41]} 17. Bd4 {[%emt 0:04:50]} Rb8 {[%emt 0:03:05]} 18. b3 {[%emt 0:06:55]} a5 {[%emt 0:07:11]} 19. Na4 {[%emt 0:03:17]} Rxe1+ {[%emt 0:04:57]} 20. Rxe1 {[%emt 0:00:03]} Bxa3 {[%emt 0:00:25]} 21. Nc5 {[%emt 0:01:38]} Bxc5 {[%emt 0:03:20]} 22. Bxc5 {[%emt 0:00:06]} Be6 {[%emt 0:00:19]} 23. Qc3 {[%emt 0:02:26]} Nd7 {[%emt 0:04:49]} 24. Bd6 {[%emt 0:03:46]} Ra8 {[%emt 0:03:16]} 25. Bf1 {[%emt 0:04:23]} Qb6 {[%emt 0:03:03]} 26. g4 {[%emt 0:06:05]} c5 {[%emt 0:02:52]} 27. Bg3 {[%emt 0:00:04]} d4 {[%emt 0:09:29]} 28. Qd3 {[%emt 0:00:17]} a4 {[%emt 0:04:15]} 29. Qe4 {[%emt 0:05:55]} Rc8 {[%emt 0:01:47]} 30. bxa4 {[%emt 0:00:28]} Nf6 {[%emt 0:00:25]} 31. Qe2 {[%emt 0:00:57]} Qc6 {[%emt 0:01:56]} 32. Bg2 {[%emt 0:05:13]} Qxa4 {[%emt 0:00:42]} 33. h4 {[%emt 0:01:40]} Nd5 {[%emt 0:02:30]} 34. Qe4 {[%emt 0:00:34]} Qd7 {[%emt 0:02:38]} 35. Qd3 {[%emt 0:06:30]} Ne3 {[%emt 0:05:25]} 36. Bf4 {[%emt 0:00:33]} c4 {[%emt 0:01:31]} 37. Qe2 {[%emt 0:01:23]} Nxg2 {[%emt 0:01:51]} 38. Kxg2 {[%emt 0:00:07]} d3 {[%emt 0:00:45]} 39. Qd2 {[%emt 0:00:45]} Qc6 {[%emt 0:03:26]} 40. Kg3 {[%emt 0:00:00]} Rd8 {[%emt 0:00:00]} 41. Qc3 {[%emt 0:07:52]} Bc8 {[%emt 0:10:40]} 42. Re4 {[%emt 0:02:44]} Bb7 {[%emt 0:01:17]} 43. Be3 {[%emt 0:09:26]} Qd6+ {[%emt 0:04:21]} 44. Bf4 {[%emt 0:00:05]} d2 {[%emt 0:01:09]} 45. Bxd6 {[%emt 0:00:12]} d1=Q {[%emt 0:00:08]} 46. Bc7 {[%emt 0:04:15]} Qg1+ {[%emt 0:01:46]} 47. Kh3 {[%emt 0:00:22]} Rd1 {[%emt 0:07:21]} 48. Re8+ {[%emt 0:00:54]} Kh7 {[%emt 0:00:02]} 49. Re3 {[%emt 0:03:30]} Qf2 {[%emt 0:01:28]} 0-1

[Event "BAN-chT Golden Jubilee 2021-22"]
[Site "Dhaka"]
[Date "2022.03.14"]
[Round "5.4"]
[White "Reefat, Bin-Sattar"]
[Black "Saiful Islam, Chowdhury"]
[Result "1-0"]
[ECO "B45"]
[WhiteElo "2371"]
[BlackElo "2075"]
[Annotator "ChessBase"]
[PlyCount "65"]
[EventDate "2022.03.10"]
[EventType "team-tourn"]
[EventCountry "BAN"]
[SourceTitle "playchess.com"]
[Source "ChessBase"]
[SourceQuality "1"]
[TimeControl "40/5400+30:1800+30"]

1. e4 {[%emt 0:08:29]} c5 {[%emt 0:00:40]} 2. Nf3 {[%emt 0:01:31]} Nc6 {[%emt 0:00:21]} 3. Nc3 {[%emt 0:01:04]} e6 {[%emt 0:02:47]} 4. d4 {[%emt 0:02:24]} cxd4 {[%emt 0:00:09]} 5. Nxd4 {[%emt 0:00:02]} Nf6 {[%emt 0:00:36]} 6. Nxc6 {[%emt 0:14:43]} bxc6 {[%emt 0:00:09]} 7. Qf3 {[%emt 0:00:03]} Qa5 {[%emt 0:09:18]} 8. Bd2 {[%emt 0:11:42]} Bb4 {[%emt 0:01:20]} 9. a3 {[%emt 0:03:30]} Bf8 {[%emt 0:06:48]} 10. g4 {[%emt 0:14:42]} Qb6 {[%emt 0:05:53]} 11. g5 {[%emt 0:05:41]} Ng8 {[%emt 0:00:23]} 12. Na4 {[%emt 0:01:44]} Qc7 {[%emt 0:03:36]} 13. Qg3 {[%emt 0:03:57]} d6 {[%emt 0:03:11]} 14. c4 {[%emt 0:06:15]} c5 {[%emt 0:01:29]} 15. b4 {[%emt 0:05:03]} Ne7 {[%emt 0:10:19]} 16. bxc5 {[%emt 0:13:46]} Qc6 {[%emt 0:05:21]} 17. Nc3 {[%emt 0:00:01]} Qxc5 {[%emt 0:02:14]} 18. Nb5 {[%emt 0:02:39]} Ng6 {[%emt 0:01:22]} 19. Bb4 {[%emt 0:00:11]} Qc6 {[%emt 0:00:50]} 20. O-O-O {[%emt 0:01:23]} e5 {[%emt 0:08:47]} 21. Bxd6 {[%emt 0:02:10]} a6 {[%emt 0:06:49]} 22. Nc7+ {[%emt 0:00:00]} Kd7 {[%emt 0:02:30]} 23. Bxe5+ {[%emt 0:00:08]} Ke7 {[%emt 0:00:29]} 24. Bd6+ {[%emt 0:00:17]} Kd8 {[%emt 0:00:57]} 25. Bxf8+ {[%emt 0:00:25]} Bd7 {[%emt 0:00:09]} 26. Nxa8 {[%emt 0:00:48]} Rxf8 {[%emt 0:00:25]} 27. Qb8+ {[%emt 0:00:13]} Ke7 {[%emt 0:00:48]} 28. Qb4+ {[%emt 0:00:04]} Ke8 {[%emt 0:00:09]} 29. Rd6 {[%emt 0:00:54]} Qxa8 {[%emt 0:01:10]} 30. Be2 {[%emt 0:00:25]} Qxe4 {[%emt 0:04:04]} 31. Qb8+ {[%emt 0:00:23]} Ke7 {[%emt 0:00:18]} 32. Rxd7+ {[%emt 0:00:03]} Kxd7 {[%emt 0:00:34]} 33. Rd1+ {[%emt 0:00:06]} 1-0

[Event "BAN-chT Golden Jubilee 2021-22"]
[Site "Dhaka"]
[Date "2022.03.14"]
[Round "5.5"]
[White "S M Sharon"]
[Black "Manon, Reja Neer"]
[Result "1/2-1/2"]
[ECO "B23"]
[WhiteElo "2087"]
[BlackElo "2209"]
[Annotator "ChessBase"]
[PlyCount "87"]
[EventDate "2022.03.10"]
[EventType "team-tourn"]
[EventCountry "BAN"]
[SourceTitle "playchess.com"]
[Source "ChessBase"]
[SourceQuality "1"]
[TimeControl "40/5400+30:1800+30"]

1. e4 {[%emt 0:00:23]} c5 {[%emt 0:01:42]} 2. Nc3 {[%emt 0:02:36]} d6 {[%emt 0:00:39]} 3. f4 {[%emt 0:01:34]} Nc6 {[%emt 0:00:49]} 4. Nf3 {[%emt 0:00:32]} g6 {[%emt 0:00:24]} 5. d4 {[%emt 0:05:15]} cxd4 {[%emt 0:17:18]} 6. Nxd4 {[%emt 0:00:03]} Bg7 {[%emt 0:00:16]} 7. Be3 {[%emt 0:06:12]} Nf6 {[%emt 0:01:32]} 8. Qd2 {[%emt 0:25:18]} O-O {[%emt 0:03:43]} 9. h3 {[%emt 0:02:42]} Nxd4 {[%emt 0:07:35]} 10. Bxd4 {[%emt 0:00:17]} e5 {[%emt 0:00:15]} 11. fxe5 {[%emt 0:04:32]} dxe5 {[%emt 0:00:48]} 12. Bc5 {[%emt 0:04:25]} Qxd2+ {[%emt 0:02:58]} 13. Kxd2 {[%emt 0:00:01]} Rd8+ {[%emt 0:00:01]} 14. Bd3 {[%emt 0:00:29]} Be6 {[%emt 0:01:28]} 15. Rhd1 {[%emt 0:12:25]} Bf8 {[%emt 0:15:36]} 16. Bxf8 {[%emt 0:02:59]} Kxf8 {[%emt 0:00:54]} 17. Ke3 {[%emt 0:00:19]} Rac8 {[%emt 0:03:21]} 18. Be2 {[%emt 0:02:43]} Ke7 {[%emt 0:01:49]} 19. Rxd8 {[%emt 0:00:34]} Rxd8 {[%emt 0:00:42]} 20. Rd1 {[%emt 0:00:24]} Rxd1 {[%emt 0:04:45]} 21. Bxd1 {[%emt 0:01:42]} h5 {[%emt 0:00:49]} 22. h4 {[%emt 0:00:44]} Kd6 {[%emt 0:01:33]} 23. b4 {[%emt 0:03:07]} a6 {[%emt 0:01:43]} 24. Be2 {[%emt 0:00:13]} Nd7 {[%emt 0:01:00]} 25. Nd5 {[%emt 0:07:14]} Bxd5 {[%emt 0:16:17]} 26. exd5 {[%emt 0:00:02]} b5 {[%emt 0:00:59]} 27. c4 {[%emt 0:02:58]} bxc4 {[%emt 0:01:41]} 28. Bxc4 {[%emt 0:00:03]} Nb6 {[%emt 0:00:01]} 29. Bxa6 {[%emt 0:00:31]} Nxd5+ {[%emt 0:00:02]} 30. Kd2 {[%emt 0:00:37]} Nxb4 {[%emt 0:00:11]} 31. Bc4 {[%emt 0:00:20]} Nd5 {[%emt 0:00:30]} 32. a4 {[%emt 0:01:13]} f6 {[%emt 0:01:55]} 33. a5 {[%emt 0:03:52]} Kc5 {[%emt 0:00:53]} 34. Bf1 {[%emt 0:03:51]} g5 {[%emt 0:03:10]} 35. hxg5 {[%emt 0:01:57]} fxg5 {[%emt 0:00:06]} 36. g3 {[%emt 0:02:17]} Ne7 {[%emt 0:05:05]} 37. Ke3 {[%emt 0:01:29]} Nf5+ {[%emt 0:00:37]} 38. Kf3 {[%emt 0:00:25]} e4+ {[%emt 0:02:28]} 39. Kf2 {[%emt 0:00:43]} e3+ {[%emt 0:00:58]} 40. Kf3 {[%emt 0:00:00]} g4+ {[%emt 0:00:00]} 41. Kf4 {[%emt 0:02:13]} h4 {[%emt 0:01:18]} 42. gxh4 {[%emt 0:02:11]} g3 {[%emt 0:00:27]} 43. Kf3 {[%emt 0:00:32]} g2 {[%emt 0:00:57]} 44. Ke4 {[%emt 0:30:33]} 1/2-1/2

[Event "BAN-chT Golden Jubilee 2021-22"]
[Site "Dhaka"]
[Date "2022.03.14"]
[Round "5.6"]
[White "Bharath Subramaniyam H"]
[Black "Aditya Mittal"]
[Result "1/2-1/2"]
[ECO "B53"]
[WhiteElo "2508"]
[BlackElo "2487"]
[Annotator "ChessBase"]
[PlyCount "158"]
[EventDate "2022.03.10"]
[EventType "team-tourn"]
[EventCountry "BAN"]
[SourceTitle "playchess.com"]
[Source "ChessBase"]
[SourceQuality "1"]
[TimeControl "40/5400+30:1800+30"]

1. e4 {[%emt 0:00:04]} c5 {[%emt 0:00:08]} 2. Nf3 {[%emt 0:00:07]} d6 {[%emt 0:00:03]} 3. d4 {[%emt 0:00:07]} cxd4 {[%emt 0:00:04]} 4. Qxd4 {[%emt 0:00:12]} Nf6 {[%emt 0:00:31]} 5. Be2 {[%emt 0:00:08]} Nc6 {[%emt 0:01:08]} 6. Qe3 {[%emt 0:00:06]} g6 {[%emt 0:00:26]} 7. O-O {[%emt 0:00:41]} Bg7 {[%emt 0:00:07]} 8. c4 {[%emt 0:00:39]} O-O {[%emt 0:02:09]} 9. Nc3 {[%emt 0:00:12]} Bg4 {[%emt 0:02:12]} 10. Rb1 {[%emt 0:06:40]} Nd7 {[%emt 0:03:49]} 11. b3 {[%emt 0:08:03]} Qb6 {[%emt 0:11:06]} 12. Qd2 {[%emt 0:28:14]} Bxf3 {[%emt 0:19:36]} 13. Bxf3 {[%emt 0:03:21]} Qd4 {[%emt 0:00:17]} 14. Nd5 {[%emt 0:13:21]} Nde5 {[%emt 0:03:36]} 15. Qe2 {[%emt 0:08:27]} Qc5 {[%emt 0:06:37]} 16. Be3 {[%emt 0:09:04]} Qa5 {[%emt 0:01:05]} 17. a4 {[%emt 0:05:23]} e6 {[%emt 0:05:26]} 18. Nf4 {[%emt 0:00:39]} Nd4 {[%emt 0:00:25]} 19. Bxd4 {[%emt 0:00:08]} Nxf3+ {[%emt 0:00:02]} 20. Qxf3 {[%emt 0:00:09]} Bxd4 {[%emt 0:00:01]} 21. Rfd1 {[%emt 0:08:24]} Be5 {[%emt 0:00:12]} 22. Nd3 {[%emt 0:00:19]} Bg7 {[%emt 0:01:09]} 23. e5 {[%emt 0:03:19]} dxe5 {[%emt 0:01:09]} 24. Qxb7 {[%emt 0:00:11]} Rab8 {[%emt 0:00:47]} 25. Qe4 {[%emt 0:02:20]} Rfd8 {[%emt 0:01:20]} 26. Qe2 {[%emt 0:01:01]} Rd4 {[%emt 0:01:11]} 27. Ne1 {[%emt 0:00:41]} Rxd1 {[%emt 0:04:36]} 28. Qxd1 {[%emt 0:00:06]} e4 {[%emt 0:00:33]} 29. Nc2 {[%emt 0:01:45]} Qc3 {[%emt 0:05:35]} 30. Ne3 {[%emt 0:00:12]} Bd4 {[%emt 0:01:23]} 31. Qc2 {[%emt 0:01:10]} Qd3 {[%emt 0:00:41]} 32. Rd1 {[%emt 0:00:44]} Qxc2 {[%emt 0:00:08]} 33. Nxc2 {[%emt 0:00:01]} Bc5 {[%emt 0:01:15]} 34. Na1 {[%emt 0:00:59]} e5 {[%emt 0:00:45]} 35. Kf1 {[%emt 0:00:07]} f5 {[%emt 0:05:29]} 36. Ke2 {[%emt 0:00:17]} a5 {[%emt 0:01:01]} 37. Rd5 {[%emt 0:00:39]} Bd4 {[%emt 0:00:12]} 38. Nc2 {[%emt 0:00:06]} Rxb3 {[%emt 0:00:04]} 39. Nxd4 {[%emt 0:00:09]} exd4 {[%emt 0:00:09]} 40. Rxd4 {[%emt 0:00:00]} Rb4 {[%emt 0:00:00]} 41. Rd5 {[%emt 0:08:56]} Rxa4 {[%emt 0:01:44]} 42. c5 {[%emt 0:01:43]} Rc4 {[%emt 0:02:26]} 43. c6 {[%emt 0:01:15]} a4 {[%emt 0:01:19]} 44. Ra5 {[%emt 0:00:11]} Kf7 {[%emt 0:01:51]} 45. c7 {[%emt 0:00:12]} Rxc7 {[%emt 0:00:07]} 46. Rxa4 {[%emt 0:00:06]} Kf6 {[%emt 0:00:51]} 47. h4 {[%emt 0:05:36]} Kg7 {[%emt 0:10:31]} 48. Ke3 {[%emt 0:15:08]} Kh6 {[%emt 0:04:05]} 49. f3 {[%emt 0:00:06]} Kh5 {[%emt 0:05:04]} 50. fxe4 {[%emt 0:01:49]} Re7 {[%emt 0:00:00]} 51. e5 {[%emt 0:00:52]} Rxe5+ {[%emt 0:00:06]} 52. Kf3 {[%emt 0:00:04]} Re4 {[%emt 0:01:45]} 53. Ra7 {[%emt 0:00:07]} h6 {[%emt 0:00:15]} 54. g3 {[%emt 0:00:00]} Rb4 {[%emt 0:00:10]} 55. Ra5 {[%emt 0:00:38]} Rb3+ {[%emt 0:00:24]} 56. Kg2 {[%emt 0:00:51]} Re3 {[%emt 0:01:59]} 57. Kf2 {[%emt 0:00:32]} Rc3 {[%emt 0:00:19]} 58. Kg2 {[%emt 0:00:11]} Rb3 {[%emt 0:00:07]} 59. Rc5 {[%emt 0:00:45]} Ra3 {[%emt 0:00:16]} 60. Rb5 {[%emt 0:00:12]} g5 {[%emt 0:00:12]} 61. hxg5 {[%emt 0:00:10]} hxg5 {[%emt 0:00:46]} 62. Rxf5 {[%emt 0:00:42]} Kg4 {[%emt 0:00:10]} 63. Rb5 {[%emt 0:00:19]} Rxg3+ {[%emt 0:00:15]} 64. Kh1 {[%emt 0:00:10]} Ra3 {[%emt 0:00:37]} 65. Kg2 {[%emt 0:00:49]} Ra2+ {[%emt 0:00:08]} 66. Kg1 {[%emt 0:00:06]} Kh4 {[%emt 0:00:07]} 67. Rb4+ {[%emt 0:00:07]} g4 {[%emt 0:00:06]} 68. Rb3 {[%emt 0:00:07]} Re2 {[%emt 0:00:12]} 69. Ra3 {[%emt 0:00:16]} Kg5 {[%emt 0:00:04]} 70. Ra5+ {[%emt 0:00:08]} Kf4 {[%emt 0:00:04]} 71. Ra4+ {[%emt 0:00:07]} Kf3 {[%emt 0:00:27]} 72. Ra3+ {[%emt 0:00:07]} Re3 {[%emt 0:00:02]} 73. Rxe3+ {[%emt 0:00:21]} Kxe3 {[%emt 0:00:01]} 74. Kg2 {[%emt 0:00:08]} Kf4 {[%emt 0:00:02]} 75. Kf2 {[%emt 0:00:07]} g3+ {[%emt 0:00:02]} 76. Kg2 {[%emt 0:00:08]} Kg4 {[%emt 0:00:02]} 77. Kg1 {[%emt 0:00:10]} Kh3 {[%emt 0:00:02]} 78. Kh1 {[%emt 0:00:09]} g2+ {[%emt 0:00:02]} 79. Kg1 {[%emt 0:00:06]} Kg3 {[%emt 0:00:03]} 1/2-1/2

[Event "BAN-chT Golden Jubilee 2021-22"]
[Site "Dhaka"]
[Date "2022.03.14"]
[Round "5.7"]
[White "Pranav Vijay"]
[Black "Nitish Belurkar"]
[Result "1-0"]
[ECO "C19"]
[WhiteElo "2265"]
[BlackElo "2447"]
[Annotator "ChessBase"]
[PlyCount "105"]
[EventDate "2022.03.10"]
[EventType "team-tourn"]
[EventCountry "BAN"]
[SourceTitle "playchess.com"]
[Source "ChessBase"]
[SourceQuality "1"]
[TimeControl "40/5400+30:1800+30"]

1. e4 {[%emt 0:00:08]} e6 {[%emt 0:00:10]} 2. d4 {[%emt 0:00:07]} d5 {[%emt 0:00:04]} 3. Nc3 {[%emt 0:00:08]} Bb4 {[%emt 1:31:46]} 4. e5 {[%emt 0:00:14]} c5 {[%emt 0:00:00]} 5. a3 {[%emt 0:00:06]} Bxc3+ {[%emt 0:00:00]} 6. bxc3 {[%emt 0:00:07]} Ne7 {[%emt 0:01:30]} 7. h4 {[%emt 0:00:28]} Qc7 {[%emt 0:00:00]} 8. h5 {[%emt 0:00:30]} h6 {[%emt 0:00:00]} 9. Nf3 {[%emt 0:00:32]} b6 {[%emt 0:00:00]} 10. Bb5+ {[%emt 0:04:46]} Bd7 {[%emt 0:00:00]} 11. Bd3 {[%emt 0:00:17]} Ba4 {[%emt 0:00:00]} 12. Rh4 {[%emt 0:01:49]} c4 {[%emt 0:00:00]} 13. Bf1 {[%emt 0:01:35]} Nd7 {[%emt 0:00:00]} 14. g3 {[%emt 0:03:30]} O-O-O {[%emt 0:04:00]} 15. Bh3 {[%emt 0:06:03]} Kb7 {[%emt 0:00:00]} 16. Rf4 {[%emt 0:02:37]} Rdf8 {[%emt 0:01:00]} 17. Kf1 {[%emt 1:16:03]} Qc6 {[%emt 0:00:00]} 18. Qe2 {[%emt 0:00:30]} Qc8 {[%emt 0:00:00]} 19. Ra2 {[%emt 0:00:30]} Qe8 {[%emt 0:00:00]} 20. Nh4 {[%emt 0:00:00]} g5 {[%emt 0:00:00]} 21. hxg6 {[%emt 0:00:00]} fxg6 {[%emt 0:02:30]} 22. Rxf8 {[%emt 0:00:00]} Nxf8 {[%emt 0:00:00]} 23. Bg4 {[%emt 0:00:00]} Qf7 {[%emt 0:01:00]} 24. Rb2 {[%emt 0:02:30]} a5 {[%emt 0:00:00]} 25. Bf3 {[%emt 0:00:00]} Ka7 {[%emt 0:00:00]} 26. Kg1 {[%emt 0:00:00]} Nd7 {[%emt 0:00:00]} 27. Ng2 {[%emt 0:01:30]} Nf5 {[%emt 0:00:00]} 28. Nf4 {[%emt 0:00:00]} Re8 {[%emt 0:00:00]} 29. Rb1 {[%emt 0:00:00]} Nf8 {[%emt 0:00:00]} 30. Ng2 {[%emt 0:00:00]} Nd7 {[%emt 0:00:00]} 31. g4 {[%emt 0:00:00]} Ng7 {[%emt 0:00:00]} 32. Bxh6 {[%emt 0:00:00]} Rf8 {[%emt 0:00:00]} 33. Nf4 {[%emt 0:00:00]} g5 {[%emt 0:00:00]} 34. Bxg7 {[%emt 0:00:00]} Qxf4 {[%emt 0:00:00]} 35. Bxf8 {[%emt 0:00:00]} Nxf8 {[%emt 0:00:00]} 36. Qe3 {[%emt 0:00:00]} Qf7 {[%emt 0:00:00]} 37. Bg2 {[%emt 0:05:00]} Qe7 {[%emt 0:07:00]} 38. f4 {[%emt 0:00:00]} Bxc2 {[%emt 0:00:00]} 39. Ra1 {[%emt 0:01:00]} Bd3 {[%emt 0:01:00]} 40. fxg5 {[%emt 0:00:30]} a4 {[%emt 0:00:30]} 41. Bf1 {[%emt 0:00:00]} Be4 {[%emt 0:30:30]} 42. Ra2 {[%emt 0:31:00]} Nh7 {[%emt 0:00:30]} 43. Bxc4 {[%emt 0:00:00]} Nxg5 {[%emt 0:00:00]} 44. Be2 {[%emt 0:01:00]} Qg7 {[%emt 0:01:00]} 45. Bd1 {[%emt 0:00:30]} b5 {[%emt 0:00:30]} 46. Rb2 {[%emt 0:00:30]} Qe7 {[%emt 0:00:30]} 47. c4 {[%emt 0:00:30]} dxc4 {[%emt 0:00:30]} 48. d5+ {[%emt 0:00:00]} Ka6 {[%emt 0:00:00]} 49. d6 {[%emt 0:00:00]} Qg7 {[%emt 0:00:00]} 50. Qc5 {[%emt 0:01:30]} Qd7 {[%emt 0:00:00]} 51. Bxa4 {[%emt 0:00:00]} Bc6 {[%emt 0:00:00]} 52. Bxb5+ {[%emt 0:00:00]} Bxb5 {[%emt 0:00:00]} 53. a4 {[%emt 0:00:00]} 1-0

[Event "BAN-chT Golden Jubilee 2021-22"]
[Site "Dhaka"]
[Date "2022.03.14"]
[Round "5.8"]
[White "Ikramul, Haq Siam"]
[Black "Chatterjee, Debaraj"]
[Result "1/2-1/2"]
[ECO "A43"]
[WhiteElo "2075"]
[BlackElo "2196"]
[Annotator "NA"]
[PlyCount "60"]
[EventDate "2022.03.10"]
[EventType "team-tourn"]
[EventCountry "BAN"]
[SourceTitle "playchess.com"]
[Source "ChessBase"]
[SourceQuality "1"]
[TimeControl "40/5400+30:1800+30"]

1. d4 {[%emt 0:00:02]} c5 {[%emt 0:02:12]} 2. d5 {[%emt 0:00:05]} d6 {[%emt 0:01:06]} 3. e4 {[%emt 0:02:14]} Nf6 {[%emt 0:00:13]} 4. Nc3 {[%emt 0:00:06]} g6 {[%emt 0:00:27]} 5. Bb5+ {[%emt 0:01:28]} Nbd7 {[%emt 0:00:45]} 6. a4 {[%emt 0:00:02]} Bg7 {[%emt 0:00:12]} 7. Nf3 {[%emt 0:00:03]} O-O {[%emt 0:00:14]} 8. O-O {[%emt 0:01:14]} a6 {[%emt 0:01:17]} 9. Bd3 {[%emt 0:00:25]} Rb8 {[%emt 0:05:41]} 10. Re1 {[%emt 0:01:36]} Nh5 {[%emt 0:07:01]} 11. g4 {[%emt 0:15:27]} Nhf6 $1 {[%emt 0:00:56]} 12. h3 {[%emt 0:00:01]} h5 {[%emt 0:01:28]} 13. g5 {[%emt 0:00:38]} Ne8 {[%emt 0:00:17]} 14. Bf1 {[%emt 0:00:24]} Nc7 {[%emt 0:09:59]} 15. a5 {[%emt 0:10:16]} b5 {[%emt 0:04:59]} 16. axb6 {[%emt 0:00:08]} Rxb6 {[%emt 0:00:03]} 17. Bg2 {[%emt 0:06:57]} Rb8 {[%emt 0:06:27]} 18. Nd2 {[%emt 0:02:01]} Nb5 $14 {[%emt 0:03:20]} 19. Na4 {[%emt 0:02:55]} e6 {[%emt 0:11:46]} 20. Nc4 {[%emt 0:01:08]} exd5 {[%emt 0:00:45]} 21. exd5 {[%emt 0:00:21]} Re8 {[%emt 0:18:17]} 22. Rxe8+ {[%emt 0:08:24]} Qxe8 {[%emt 0:02:09]} 23. c3 {[%emt 0:00:03]} Ne5 {[%emt 0:02:59]} 24. Nab6 {[%emt 0:08:16]} Nxc4 {[%emt 0:09:30]} 25. Nxc4 {[%emt 0:00:04]} Bb7 {[%emt 0:01:45]} 26. Bf4 {[%emt 0:03:43]} Qd7 {[%emt 0:00:44]} 27. Qd3 {[%emt 0:07:43]} Re8 {[%emt 0:00:25]} 28. Qg3 {[%emt 0:08:34]} Bf8 {[%emt 0:01:01]} 29. Qd3 {[%emt 0:05:33]} Bg7 {[%emt 0:02:14]} 30. Qg3 {[%emt 0:03:07]} Bf8 {[%emt 0:00:17]} 1/2-1/2

[Event "BAN-chT Golden Jubilee 2021-22"]
[Site "Dhaka"]
[Date "2022.03.14"]
[Round "5.9"]
[White "Mehdi Hasan Parag"]
[Black "Sadnan Hasan, Dihan"]
[Result "1/2-1/2"]
[ECO "C55"]
[WhiteElo "2258"]
[BlackElo "2152"]
[Annotator "ChessBase"]
[PlyCount "118"]
[EventDate "2022.03.10"]
[EventType "team-tourn"]
[EventCountry "BAN"]
[SourceTitle "playchess.com"]
[Source "ChessBase"]
[SourceQuality "1"]
[TimeControl "40/5400+30:1800+30"]

1. e4 {[%emt 0:00:14]} e5 {[%emt 0:00:48]} 2. Nf3 {[%emt 0:00:20]} Nc6 {[%emt 0:00:07]} 3. Bc4 {[%emt 0:00:15]} Be7 {[%emt 0:00:03]} 4. O-O {[%emt 0:01:31]} Nf6 {[%emt 0:00:03]} 5. d3 {[%emt 0:00:52]} O-O {[%emt 0:00:10]} 6. a4 {[%emt 0:00:19]} d6 {[%emt 0:01:04]} 7. Re1 {[%emt 0:00:23]} Be6 {[%emt 0:01:55]} 8. Nc3 {[%emt 0:00:18]} Bg4 {[%emt 0:12:01]} 9. h3 {[%emt 0:00:14]} Bxf3 {[%emt 0:00:41]} 10. Qxf3 {[%emt 0:00:08]} Nd4 {[%emt 0:00:14]} 11. Qd1 {[%emt 0:00:10]} c6 {[%emt 0:00:04]} 12. Ne2 {[%emt 0:01:16]} Nxe2+ {[%emt 0:00:08]} 13. Qxe2 {[%emt 0:00:11]} Re8 {[%emt 0:00:58]} 14. Bb3 {[%emt 0:00:45]} Bf8 {[%emt 0:00:20]} 15. Bg5 {[%emt 0:00:34]} h6 {[%emt 0:00:14]} 16. Bh4 {[%emt 0:00:35]} g5 {[%emt 0:01:04]} 17. Bg3 {[%emt 0:00:12]} Nd7 {[%emt 0:04:01]} 18. Qh5 {[%emt 0:07:25]} Qf6 {[%emt 0:00:10]} 19. h4 {[%emt 0:05:20]} Nc5 {[%emt 0:00:21]} 20. hxg5 {[%emt 0:00:35]} hxg5 {[%emt 0:00:03]} 21. Ba2 {[%emt 0:00:44]} Ne6 {[%emt 0:00:12]} 22. Re3 {[%emt 0:01:35]} Qh6 {[%emt 0:06:04]} 23. Qg4 {[%emt 0:01:11]} Be7 {[%emt 0:01:50]} 24. Bh2 {[%emt 0:03:48]} Kg7 {[%emt 0:00:52]} 25. Rae1 {[%emt 0:14:19]} Rh8 {[%emt 0:01:17]} 26. Rh3 {[%emt 0:01:24]} Qg6 {[%emt 0:00:04]} 27. Bxe6 {[%emt 0:05:59]} Qxe6 {[%emt 0:00:30]} 28. Qxe6 {[%emt 0:00:38]} fxe6 {[%emt 0:00:03]} 29. Rxh8 {[%emt 0:00:40]} Rxh8 {[%emt 0:00:04]} 30. f3 {[%emt 0:00:27]} Bd8 {[%emt 0:02:55]} 31. g4 {[%emt 0:03:52]} Ba5 {[%emt 0:03:55]} 32. c3 {[%emt 0:00:28]} Rc8 {[%emt 0:00:37]} 33. Kg2 {[%emt 0:00:21]} c5 {[%emt 0:01:44]} 34. Bg1 {[%emt 0:02:15]} a6 {[%emt 0:01:27]} 35. Be3 {[%emt 0:00:20]} Bd8 {[%emt 0:00:08]} 36. Rh1 {[%emt 0:03:42]} Bf6 {[%emt 0:01:29]} 37. Kf2 {[%emt 0:02:28]} Rb8 {[%emt 0:00:13]} 38. Ke2 {[%emt 0:01:58]} Rh8 {[%emt 0:05:46]} 39. Rxh8 {[%emt 0:00:16]} Kxh8 {[%emt 0:00:01]} 40. Kd2 {[%emt 0:00:00]} Kg7 {[%emt 0:00:00]} 41. Kc2 {[%emt 0:00:56]} Kf7 {[%emt 0:04:12]} 42. Kb3 {[%emt 0:00:24]} Ke7 {[%emt 0:00:18]} 43. Kc4 {[%emt 0:00:21]} Kd7 {[%emt 0:00:13]} 44. b4 {[%emt 0:02:49]} b6 {[%emt 0:06:02]} 45. b5 {[%emt 0:13:45]} a5 {[%emt 0:00:52]} 46. Bd2 {[%emt 0:00:25]} Kc7 {[%emt 0:00:38]} 47. Be1 {[%emt 0:13:47]} Kd7 {[%emt 0:00:06]} 48. Bg3 {[%emt 0:01:04]} Ke7 {[%emt 0:00:26]} 49. Bh2 {[%emt 0:03:34]} Kd7 {[%emt 0:00:13]} 50. Bg1 {[%emt 0:03:54]} Kc7 {[%emt 0:00:39]} 51. Be3 {[%emt 0:02:46]} Kd7 {[%emt 0:00:05]} 52. Bd2 {[%emt 0:00:17]} Kc7 {[%emt 0:00:20]} 53. Be3 {[%emt 0:01:52]} Kd7 {[%emt 0:00:05]} 54. d4 {[%emt 0:00:41]} exd4 {[%emt 0:01:11]} 55. cxd4 {[%emt 0:02:08]} cxd4 {[%emt 0:00:01]} 56. Bd2 {[%emt 0:01:21]} e5 {[%emt 0:02:15]} 57. Kd5 {[%emt 0:00:51]} Bd8 {[%emt 0:00:14]} 58. Bc1 {[%emt 0:00:17]} Bf6 {[%emt 0:00:07]} 59. Bb2 {[%emt 0:01:29]} Bd8 {[%emt 0:00:22]} 1/2-1/2